Cogmind - Beta 9.6 @@@ ROGUE MODE // 2020.07.08 @ 17:30:08 Player: Lyft Result: Destroyed by G-34 Mercenary with Small Laser Performance ------------- Evolutions (0) 0 Regions Visited (1) 200 Robots Destroyed (10) 50 Value Destroyed (159) 159 Prototype IDs (0) 0 Alien Tech Used (0) 0 Bonus (0) 0 TOTAL SCORE: 409 Bonus ------- None Cogmind --------- Core Integrity 0/250 Matter 300/300 Energy 100/100 System Corruption 1% Temperature Cool (21) Movement Core (550) Ox10 Location -10/Materials Parts ------- > --- POWER (1) -------- (None) > --- PROPULSION (2) --- (None) > --- UTILITY (2) ------ High-capacity Storage Unit Targeting Computer > --- WEAPON (2) ------- (None) > --- INVENTORY (12) --- Light Ion Engine Wheel Medium Storage Unit Peak State ------------ > --- POWER ------------ Light Ion Engine > --- PROPULSION ------- Aluminum Leg Aluminum Leg > --- UTILITY ---------- Small Matter Pod Seismic Analyzer > --- WEAPON ----------- EM Pulse Gun Medium Laser > --- INVENTORY -------- Light Ion Engine Wheel Wheel Small Laser [Rating: 7] Favorites ----------- Power Light Ion Engine Engine Light Ion Engine Propulsion Aluminum Leg Treads Light Treads Leg Aluminum Leg Wheel Wheel Utility Small Matter Pod Storage Small Matter Pod Processor Targeting Computer Weapon Medium Laser Energy Gun Medium Laser Build | -11 -10 ------- Run | Scr Mat Slots Evolved . | . . Power . | . . Propulsion . | . . Utility . | . . Weapon . | . . Parts Attached 16 | 9 7 Power 2 | 1 1 Engine 2 | 1 1 Core . | . . Reactor . | . . Propulsion 5 | 4 1 Treads 1 | . 1 Leg 2 | 2 . Wheel 2 | 2 . Hover . | . . Flight . | . . Utility 5 | 2 3 Device . | . . Storage 3 | 1 2 Processor 2 | 1 1 Hackware . | . . Protection . | . . Artifact . | . . Weapon 4 | 2 2 Energy Gun 4 | 2 2 Energy Cannon . | . . Ballistic Gun . | . . Ballistic Cannon . | . . Launcher . | . . Special Weapon . | . . Impact Weapon . | . . Slashing Weapon . | . . Piercing Weapon . | . . Special Melee Weapon . | . . Unidentified Prototypes . | . . Parts Lost 5 | . 5 Power 1 | . 1 Propulsion 1 | . 1 Utility . | . . Weapon 3 | . 3 Highest Loss Streak 3 | . 3 Average Slot Usage (%) 69 | . 69 Engine 6 | . 6 Treads 9 | . 9 Leg 6 | . 6 Storage 21 | . 21 Processor 6 | . 6 Energy Gun 19 | . 19 Naked Turns . | . . Heaviest Build 34 | 8 34 Greatest Support 20 | 20 20 Greatest Overweight (x) 10 | . 10 Average Overweight (x) . | . 1 Largest Inventory Capacity 12 | 4 12 Average Capacity 7 | 4 10 Most Carried 7 | 4 7 Average Carried 3 | 2 4 Final Capacity 12 | 4 12 Final Carried 4 | 4 3 Class Distribution -------------------- 100% | Mutant Dominant Class ---------------- Mutant | -10/Materials Resources | -11 -10 ----------- Run | Scr Mat Matter Collected 385 | 340 45 Remotely . | . . Salvage Created 307 | 112 195 Parts 25 | 13 12 Haulers Intercepted . | . . Recyclers Shooed 1 | . 1 Parts Field Recycled . | . . Retrieved Matter . | . . Parts Self-Destructed . | . . Prevented . | . . Kills | -11 -10 ------- Run | Scr Mat Combat Hostiles Destroyed 3 | 1 2 Guns 3 | 1 2 Classes Destroyed 5 | 3 2 Worker 2 | 1 1 Builder 1 | . 1 Tunneler 3 | 2 1 Watcher 1 | . 1 Grunt 3 | 1 2 Best Kill Streak 2 | 2 2 Combat Bots Only 1 | 1 1 Max Kills in Single Turn 1 | 1 1 Gunslinging . | . . Exploded . | . . Melee . | . . Uniques/NPCs Destroyed . | . . Combat | -11 -10 -------- Run | Scr Mat Damage Taken 688 | 42 646 Core 260 | 21 239 Absorbed by Shields . | . . Core Remaining (%) 91 | 91 . Volleys Fired 40 | 10 30 Largest 2 | 2 2 Hottest 100 | 90 100 Shots Fired 59 | 20 39 Gun 59 | 20 39 Cannon . | . . Launcher . | . . Special . | . . Kinetic . | . . Thermal 49 | 10 39 Explosive . | . . Electromagnetic 10 | 10 . Robot Hit Streak 6 | 4 6 Robot Miss Streak 2 | 1 2 Penetration Max . | . . Secondary Targets 2 | . 2 Max Gunslinging Chain 1 | . 1 Shots Hit Robots 39 | 11 28 Core Hits 16 | 5 11 Critical Hits . | . . Critical Kills . | . . Critical Parts Destroyed . | . . Melee Attacks . | . . Impact . | . . Slashing . | . . Piercing . | . . Sneak Attacks . | . . Combat Hostiles . | . . Follow-up Attacks . | . . Damage Inflicted 437 | 117 320 Guns 437 | 117 320 Cannons . | . . Explosions . | . . Melee . | . . Ramming . | . . Kinetic . | . . Thermal 358 | 38 320 Explosive . | . . Electromagnetic 79 | 79 . Impact . | . . Slashing . | . . Piercing . | . . Highest Corruption 1 | . 1 Average Corruption 1 | . 1 Corruption Purged . | . . Effects 1 | . 1 Data Loss (minor) 1 | . 1 Overload Shots . | . . Overflow Damage . | . . Projectiles . | . . Explosions . | . . Melee . | . . Knockbacks . | . . Impact . | . . Kinetic . | . . Secondary . | . . Self-Inflicted Damage . | . . Shots . | . . Rammed . | . . Targets Rammed . | . . Kicked . | . . Crushed . | . . Highest Temperature 518 | 174 518 Average Temperature 199 | 73 271 Received Heat Transfer 387 | 24 363 Effects 6 | . 6 Shutdowns 2 | . 2 Energy Bleed 1 | . 1 Matter Decay 3 | . 3 Siege Activations . | . . Robots Corrupted . | . . Combat Hostiles . | . . Parts Fried . | . . Impact Corruptions . | . . Robots Melted . | . . Combat Hostiles . | . . Parts Melted 6 | 1 5 Heat Transferred 990 | 111 879 Parts Sabotaged . | . . Parts Stolen . | . . Parts Stripped . | . . Power Chain Reactions . | . . Missiles Intercepted . | . . Alert | -11 -10 ------- Run | Scr Mat Peak Influence 64 | 35 64 Average Influence 27 | 10 39 Maximum Alert Level . | . . Low Security (%) 100 | 100 100 Level 1 . | . . Level 2 . | . . Level 3 . | . . Level 4 . | . . Level 5 . | . . High Security . | . . Max Security . | . . Squads Dispatched . | . . Investigation . | . . Extermination . | . . Reinforcement . | . . Assault . | . . Garrison . | . . Intercept . | . . Construction Impeded . | . . Haulers Reinforced . | . . Stealth | -11 -10 --------- Run | Scr Mat Distress Signals . | . . Communications Jammed . | . . Distress Signals . | . . Times Spotted 7 | 1 6 Peak Tracking Total 3 | 1 3 Tactical Retreats . | . . Traps | -11 -10 ------- Run | Scr Mat Traps Triggered 1 | . 1 Indirectly . | . . Trap Hack Attempts . | . . Triggered . | . . Disarmed . | . . Reprogrammed . | . . Reused . | . . Traps Extracted . | . . Installed . | . . Triggered . | . . Machines | -11 -10 ---------- Run | Scr Mat Machines Disabled . | . . Max in Single Turn . | . . Machines Sabotaged . | . . Garrisons Compromised . | . . Overloaded Fab Kills . | . . Fab Network Shutdowns . | . . Hacking | -11 -10 --------- Run | Scr Mat Machines Accessed 1 | . 1 Terminals 1 | . 1 Fabricators . | . . Repair Stations . | . . Recycling Units . | . . Scanalyzers . | . . Garrison Access . | . . Total Hacks 5 | . 5 Successful 3 | . 3 Failed 2 | . 2 Catastrophic . | . . Database Lockouts . | . . Manual . | . . Terminals 5 | . 5 Fabricators . | . . Repair Stations . | . . Recycling Units . | . . Scanalyzers . | . . Garrison Access . | . . Terminal Hacks 3 | . 3 Alert Level 2 | . 2 Locate Traps 1 | . 1 Fabricator Hacks . | . . Repair Station Hacks . | . . Recycling Unit Hacks . | . . Scanalyzer . | . . Garrison Access Hacks . | . . Unauthorized Hacks . | . . Terminals . | . . Fabricators . | . . Repair Stations . | . . Recycling Units . | . . Scanalyzers . | . . Garrison Access . | . . Data Cores Recovered . | . . Used . | . . Hacking Detections 1 | . 1 Full Trace Events . | . . Feedback Events . | . . Feedback Blocked . | . . Robot Schematics Acquired . | . . Robots Built . | . . Matter . | . . Time . | . . Total Robot Build Rating . | . . Part Schematics Acquired . | . . Parts Built . | . . Matter . | . . Time . | . . Total Part Build Rating . | . . Parts Repaired . | . . Time . | . . Parts Recycled . | . . Recycled Matter . | . . Retrieved Matter . | . . Retrieved Components . | . . Parts Scanalyzed . | . . Part Schematics Acquired . | . . Parts Damaged . | . . Bothacking | -11 -10 ------------ Run | Scr Mat Used RIF Installer . | . . Robots Hacked . | . . Non-combat . | . . Combat . | . . Robot Hacks Applied . | . . Relay Couplers Released . | . . Robots Rewired . | . . Allies Hacked . | . . Hacks Repelled . | . . Allies | -11 -10 -------- Run | Scr Mat Total Allies . | . . Largest Group . | . . Highest-Rated Group . | . . Highest-Rated Ally . | . . Total Orders . | . . Ally Attacks . | . . Total Damage . | . . Kills . | . . Allies Corrupted . | . . Allies Melted . | . . Intel | -11 -10 ------- Run | Scr Mat Robot Analysis Total . | . . Derelict Logs Recovered . | . . Drone Launches . | . . Drone Recoveries . | . . Exploration | -11 -10 ------------- Run | Scr Mat Turns Passed 471 | 197 274 Spaces Moved 219 | 117 102 Core 26 | 21 5 Treads 61 | . 61 Legs 132 | 96 36 Wheels . | . . Hover . | . . Flight . | . . Fastest Speed 50 | 50 120 Average Speed 141 | 107 179 Slowest Speed 550 | 120 550 Overloaded Moves . | . . Propulsion Burnouts . | . . Robots Hopped . | . . Cave-ins Triggered . | . . Exploration Rate (%) 14 | 6 22 Regions Visited 1 Branch Regions . Pre-discovered Areas . | . . Known Exits Taken . | . . Unknown Exits Taken 1 | 1 . Scrap Searched . | . . Spaces Dug . | . . Terrain Destroyed . | . . Melee . | . . Projectile . | . . AOE . | . . Actions | -11 -10 --------- Run | Scr Mat Total 323 | 167 156 Wait 25 | 20 5 Move 218 | 116 102 Hop . | . . Pick Up 17 | 11 6 Fast Attach 2 | 1 1 Attach 11 | 6 5 Detach . | . . Swap 3 | 2 1 Drop 7 | 1 6 Fire 40 | 10 30 Melee . | . . Ram . | . . Kick . | . . Crush . | . . Escape Stasis . | . . Rewire . | . . Trap . | . . Miscellaneous . | . . Route ------- -11/Scrapyard -10/Materials History --------- Turn | Location | Event 2 | -11/Scrapyard | Met Revision 17 120 | -11/Scrapyard | Discovered new exit (range 8) 198 | -11/Scrapyard | Entered Materials 317 | -10/Materials | Build established: Mutant 358 | -10/Materials | Lost 3 parts (1p2w) 459 | -10/Materials | Core integrity fell below 50% 471 | -10/Materials | Core integrity fell below 20% 472 | -10/Materials | Destroyed by G-34 Mercenary with Small Laser Last Messages --------------- Triggered Shock Trap. The floor emits a surge of raw power. System corrupted (+1). T-07 Excavator is excavating. System corrupted: Component data lost. T-07 Excavator is excavating. T-07 Excavator destroyed. Connecting with Terminal... Current location identified: Materials >>Alert(Check) Current Alert Level: Low Security >>Alert(Check) Current Alert Level: Low Security >>Traps(Locate) Found 1 trap in 1 array: 1x EMP Trap Map updated. K-01 Serf destroyed. Lgt. Treads destroyed. Sml. Laser destroyed. Map ----- +----------------------------------------------------+ | ???????????????????????????????????? | | ??????????????##########???????????? | | ??????????????# #???????????? | | ??????????????# #???????????? | | ??????????????# !=! #?########??# | | ???????######## !=! #?# = ! #??# | | ???????# !% # =!!* #?# = #??# | | ???????# =!!|# = #?# """ [#??# | | ?##########%### ###[""" #??# | | ?# +*! + +%+ """ #??# | | ?# """#= # | ###% #??? | | ?# """# #####/########/####### | | ?# = """# | | ?# + % | | ?# # | | ?# "T" ### ############+##### # | | ?# """ #?#g#?????????? ????# # | | ?# #?# #?????????? ????# # | | ?###+########a##???????? ????+ # | | ???# ## #????????""?????# # | | ???# ## #???????"""?????# # | | ???# ## #?????????"?????# # | | ???# r/ ! #???????????????# # | | ???# ## = #???????????????# # | | ???# ## #???????????????# # | | ???# ##! @ #???????????????# # | | ???# ## !% #???????????????# # | | ???# ## gg * #???????????????# # | | ???# ######/####???????????????# ? | | ???# #???? ??????????????????? ? | | ???# #???? a#?????????????????????? | | ???? ?^??? #?????????????????????? | | ????#????? #?????????????????????? | | ?????????? #?????????????????????? | | ?????????? #?????????????????????? | | ?????????# #?????????????????????? | | ?????????+ #?????????????????????? | | ?????????# #?????????????????????? | | ?????????? #?????????????????????? | | ?????????? ??????????????????????? | | ?????????? ??????????????????????? | | ???????????????????????????????????? | | ???????????????????????????????????? | | ???????????????????????????????????? | | ???????????????????????????????????? | | ???????????????????????????????????? | | ???????????????????????????????????? | | ???????????????????????????????????? | | ???????????????????????????????????? | | ???????????????????????????????????? | +----------------------------------------------------+ Best States ------------- Heat Dissipation 25 Energy Generation 10 Energy Capacity 125 Matter Stores 350 Matter Capacity 350 Sight Range 16 Terrain Scan Density 60 Evasion (%) 50 Targeting Accuracy 5 Recoil Reduction 1 Item Schematics ----------------- None Robot Schematics ------------------ None Fabricated ------------ Nothing Alien Tech Used ----------------- None Achievements -------------- None Challenges ------------ None Game ------ Seed LobotomyCoolingSuperbattery Manual? 0 Play Time 00:16:45 Cumulative 1.0 hours Start 2020.07.08 @ 17:15:26 End 2020.07.08 @ 17:30:08 Sessions 1 Manual Loads 0 Difficulty Rogue Special Mode None Game No. 3 Rogue 3 Adventurer 0 Explorer 0 Win Type - Total 0 Types 0/0/0/0/0/0/0 Lore% 0 Gallery% 2 Achievement% 1 Wizard Run 0 Options --------- ASCII 0 Keyboard 0 Movement Mouse Keybinds 0 Fullscreen 1 Font 24/Smallcaps Map View 76x50 Tactical HUD 0 Map Filters NONE Filters NONE Steam 1 RUN: 64fb9fb4-15fa-4cd1-9a1e-eb2e5d44e12d